[Event "*** Titled Tuesday Blitz"]
[Site "Chess.com"]
[Date "2020.02.04"]
[Round "4"]
[White "PowerThinking2650"]
[Black "volcanoexplorer"]
[Result "1-0"]
[WhiteElo "2397"]
[BlackElo "2598"]
[TimeControl "180+2"]
[EndTime "13:50:39 PST"]
[Termination "PowerThinking2650 won by resignation"]

1. e4 {[%clk 0:03:01.9]} 1... e5 {[%clk 0:03:00.7]} 2. Nf3 {[%clk 0:03:02.3]}
2... Nc6 {[%clk 0:03:02]} 3. Nc3 {[%clk 0:03:03.9]} 3... Nf6 {[%clk 0:03:02.7]}
4. d4 {[%clk 0:03:05.5]} 4... exd4 {[%clk 0:03:02.6]} 5. Nxd4 {[%clk 0:03:07.4]}
5... Nxd4 {[%clk 0:03:04.2]} 6. Qxd4 {[%clk 0:03:07.8]} 6... d6 {[%clk
0:03:03.7]} 7. Bf4 {[%clk 0:03:04.6]} 7... Be7 {[%clk 0:03:01.2]} 8. O-O-O
{[%clk 0:03:00.4]} 8... O-O {[%clk 0:03:02.2]} 9. f3 {[%clk 0:03:00.3]} 9... Be6
{[%clk 0:02:58.4]} 10. g4 {[%clk 0:02:57]} 10... Nd7 {[%clk 0:02:42.3]} 11. Qd2
{[%clk 0:02:55.7]} 11... Nb6 {[%clk 0:02:40]} 12. h4 {[%clk 0:02:52.7]} 12... a5
{[%clk 0:02:37.3]} 13. g5 {[%clk 0:02:22.7]} 13... a4 {[%clk 0:02:28.3]} 14. a3
{[%clk 0:02:20.3]} 14... f6 {[%clk 0:02:08.5]} 15. gxf6 {[%clk 0:02:04.6]} 15...
Bxf6 {[%clk 0:02:09.3]} 16. Bg5 {[%clk 0:02:05.8]} 16... Rf7 {[%clk 0:01:55.6]}
17. f4 {[%clk 0:01:36.3]} 17... h6 {[%clk 0:01:35.7]} 18. Bd3 {[%clk 0:01:08.7]}
18... hxg5 {[%clk 0:01:01.4]} 19. hxg5 {[%clk 0:01:09]} 19... Bxc3 {[%clk
0:01:01.9]} 20. Qh2 {[%clk 0:00:35.6]} 20... Kf8 {[%clk 0:00:19.2]} 21. bxc3
{[%clk 0:00:32.2]} 21... Ke7 {[%clk 0:00:07.1]} 22. f5 {[%clk 0:00:28.3]} 22...
Bc4 {[%clk 0:00:07]} 23. g6 {[%clk 0:00:21.4]} 23... Rf6 {[%clk 0:00:05.4]} 24.
e5 {[%clk 0:00:22.5]} 24... dxe5 {[%clk 0:00:05.3]} 25. Qxe5+ {[%clk 0:00:22.6]}
25... Be6 {[%clk 0:00:07.2]} 26. Rh7 {[%clk 0:00:17.6]} 26... Qg8 {[%clk
0:00:05.6]} 27. fxe6 {[%clk 0:00:17.6]} 27... Rxe6 {[%clk 0:00:03.9]} 28. Qxc7+
{[%clk 0:00:14.5]} 28... Nd7 {[%clk 0:00:04.8]} 29. Bc4 {[%clk 0:00:12.4]} 29...
Rc6 {[%clk 0:00:04.7]} 30. Qxd7+ {[%clk 0:00:12.4]} 30... Kf6 {[%clk 0:00:05.6]}
31. Bxg8 {[%clk 0:00:12.1]} 1-0

[Event "*** Titled Tuesday Blitz"]
[Site "Chess.com"]
[Date "2020.02.04"]
[Round "4"]
[White "albano87"]
[Black "Sanyura"]
[Result "0-1"]
[WhiteElo "1919"]
[BlackElo "2495"]
[TimeControl "180+2"]
[EndTime "13:50:45 PST"]
[Termination "Sanyura won by resignation"]

1. d4 {[%clk 0:03:01.7]} 1... Nf6 {[%clk 0:03:00.4]} 2. Nf3 {[%clk 0:03:02.5]}
2... g6 {[%clk 0:03:01.2]} 3. g3 {[%clk 0:03:04]} 3... Bg7 {[%clk 0:03:02.5]} 4.
Bg2 {[%clk 0:03:04.4]} 4... O-O {[%clk 0:03:04.1]} 5. O-O {[%clk 0:02:51.6]}
5... d6 {[%clk 0:03:04.2]} 6. a4 {[%clk 0:02:51.9]} 6... Nbd7 {[%clk 0:03:03]}
7. Re1 {[%clk 0:02:51.2]} 7... e5 {[%clk 0:03:03.1]} 8. e4 {[%clk 0:02:51.3]}
8... exd4 {[%clk 0:02:58.5]} 9. Nxd4 {[%clk 0:02:51.7]} 9... Re8 {[%clk
0:02:59.6]} 10. Nc3 {[%clk 0:02:52.3]} 10... Nc5 {[%clk 0:02:59.7]} 11. h3
{[%clk 0:02:52.3]} 11... Bd7 {[%clk 0:02:58.4]} 12. Bf4 {[%clk 0:02:48.5]} 12...
Nh5 {[%clk 0:02:57]} 13. Be3 {[%clk 0:02:48.7]} 13... Nf6 {[%clk 0:02:58.5]} 14.
Bf4 {[%clk 0:02:49.2]} 14... h5 {[%clk 0:02:54.1]} 15. Qd2 {[%clk 0:02:48.9]}
15... Qc8 {[%clk 0:02:54.8]} 16. Kh2 {[%clk 0:02:48.5]} 16... a6 {[%clk
0:02:54.6]} 17. Bh6 {[%clk 0:02:46.5]} 17... Bh8 {[%clk 0:02:55.1]} 18. Rad1
{[%clk 0:02:38.4]} 18... Rb8 {[%clk 0:02:50.8]} 19. b3 {[%clk 0:02:36.2]} 19...
b5 {[%clk 0:02:51.3]} 20. axb5 {[%clk 0:02:35.9]} 20... axb5 {[%clk 0:02:52.3]}
21. Nd5 {[%clk 0:02:31.7]} 21... Nfxe4 {[%clk 0:02:47.4]} 22. Qf4 {[%clk
0:02:25.4]} 22... Be5 {[%clk 0:01:29.4]} 23. Qh4 {[%clk 0:02:24.8]} 23... Nxf2
{[%clk 0:01:21.9]} 24. Ne7+ {[%clk 0:01:59]} 24... Rxe7 {[%clk 0:01:22.2]} 25.
Qxe7 {[%clk 0:01:58.5]} 25... Bxh3 {[%clk 0:00:50.7]} 26. Rxe5 {[%clk
0:01:39.8]} 26... dxe5 {[%clk 0:00:20.4]} 27. Nc6 {[%clk 0:01:19.6]} 27... Ng4+
{[%clk 0:00:19.6]} 28. Kg1 {[%clk 0:01:19.7]} 28... Qe8 {[%clk 0:00:15.6]} 29.
Bxh3 {[%clk 0:01:03.9]} 29... Nxh6 {[%clk 0:00:15.7]} 30. Qg5 {[%clk 0:01:01.9]}
30... Qxc6 {[%clk 0:00:15]} 31. Qxh6 {[%clk 0:00:57.6]} 31... Qf3 {[%clk
0:00:16.1]} 32. Rf1 {[%clk 0:00:43.1]} 32... Qxg3+ {[%clk 0:00:17.2]} 33. Bg2
{[%clk 0:00:44.9]} 33... Ne6 {[%clk 0:00:18.3]} 34. Qd2 {[%clk 0:00:38.3]} 34...
Nf4 {[%clk 0:00:18]} 35. Rf3 {[%clk 0:00:37.9]} 35... Qxg2+ {[%clk 0:00:16.4]}
36. Qxg2 {[%clk 0:00:38.3]} 36... Nxg2 {[%clk 0:00:18.3]} 0-1

[Event "*** Titled Tuesday Blitz"]
[Site "Chess.com"]
[Date "2020.02.04"]
[Round "4"]
[White "IakovUlivar"]
[Black "AndrewDGreen"]
[Result "1-0"]
[WhiteElo "2438"]
[BlackElo "2214"]
[TimeControl "180+2"]
[EndTime "13:50:48 PST"]
[Termination "IakovUlivar won on time"]

1. d4 {[%clk 0:03:01.9]} 1... Nf6 {[%clk 0:02:55]} 2. c4 {[%clk 0:03:02.1]} 2...
g6 {[%clk 0:02:54]} 3. Nc3 {[%clk 0:02:59.9]} 3... Bg7 {[%clk 0:02:55.1]} 4. e4
{[%clk 0:02:59.6]} 4... d6 {[%clk 0:02:56.4]} 5. Be2 {[%clk 0:03:00.3]} 5... O-O
{[%clk 0:02:57.2]} 6. Be3 {[%clk 0:03:01.6]} 6... c5 {[%clk 0:02:49.2]} 7. Nf3
{[%clk 0:02:56.5]} 7... Ng4 {[%clk 0:02:38.5]} 8. Bc1 {[%clk 0:02:49.7]} 8...
cxd4 {[%clk 0:02:22.4]} 9. Nxd4 {[%clk 0:02:49.5]} 9... Qb6 {[%clk 0:02:19]} 10.
Bxg4 {[%clk 0:02:49.1]} 10... Bxd4 {[%clk 0:01:59.6]} 11. O-O {[%clk 0:02:47]}
11... Bxc3 {[%clk 0:01:52.4]} 12. bxc3 {[%clk 0:02:43.2]} 12... Bxg4 {[%clk
0:01:52.3]} 13. Qxg4 {[%clk 0:02:43.6]} 13... Nc6 {[%clk 0:01:53]} 14. Be3
{[%clk 0:02:36.9]} 14... Qa5 {[%clk 0:01:50.3]} 15. f4 {[%clk 0:02:34.7]} 15...
Qxc3 {[%clk 0:01:44.4]} 16. Rae1 {[%clk 0:02:31.4]} 16... Qxc4 {[%clk
0:01:43.1]} 17. f5 {[%clk 0:02:25.6]} 17... Ne5 {[%clk 0:01:40]} 18. Qh4 {[%clk
0:02:26.4]} 18... f6 {[%clk 0:01:30.1]} 19. fxg6 {[%clk 0:02:18.5]} 19... hxg6
{[%clk 0:01:16.7]} 20. Bf4 {[%clk 0:02:12.5]} 20... Rf7 {[%clk 0:01:06.2]} 21.
Qg3 {[%clk 0:02:05.7]} 21... Rg7 {[%clk 0:00:57.6]} 22. Bh6 {[%clk 0:01:57.2]}
22... Rh7 {[%clk 0:00:54.6]} 23. Bf4 {[%clk 0:01:58.3]} 23... Qxa2 {[%clk
0:00:47]} 24. Rf2 {[%clk 0:01:34.5]} 24... Qf7 {[%clk 0:00:46.2]} 25. Rc1 {[%clk
0:01:30.4]} 25... a5 {[%clk 0:00:44.9]} 26. Rb2 {[%clk 0:01:15.2]} 26... a4
{[%clk 0:00:34]} 27. Rxb7 {[%clk 0:01:13.4]} 27... a3 {[%clk 0:00:34.5]} 28. Be3
{[%clk 0:00:47.5]} 28... a2 {[%clk 0:00:30.6]} 29. Bd4 {[%clk 0:00:48.5]} 29...
Rg7 {[%clk 0:00:16]} 30. Ba1 {[%clk 0:00:47.8]} 30... Nc4 {[%clk 0:00:10]} 31.
Qb3 {[%clk 0:00:39.4]} 31... Nd2 {[%clk 0:00:05.8]} 32. Qd3 {[%clk 0:00:33.8]}
32... Nxe4 {[%clk 0:00:02.3]} 33. Qxe4 {[%clk 0:00:33.6]} 33... d5 {[%clk
0:00:02.7]} 34. Qb4 {[%clk 0:00:31.6]} 34... Qe6 {[%clk 0:00:02.6]} 35. Re1
{[%clk 0:00:29.8]} 35... Qc6 {[%clk 0:00:02.2]} 36. Rbxe7 {[%clk 0:00:27.5]} 1-0

[Event "*** Titled Tuesday Blitz"]
[Site "Chess.com"]
[Date "2020.02.04"]
[Round "4"]
[White "vlad_Sid"]
[Black "WPWPWP-2015"]
[Result "1-0"]
[WhiteElo "2731"]
[BlackElo "2521"]
[TimeControl "180+2"]
[EndTime "13:50:50 PST"]
[Termination "vlad_Sid won by resignation"]

1. c4 {[%clk 0:03:01.9]} 1... e5 {[%clk 0:02:59.6]} 2. g3 {[%clk 0:03:03.1]}
2... Nf6 {[%clk 0:03:00.4]} 3. Bg2 {[%clk 0:03:04.2]} 3... d5 {[%clk 0:03:00.7]}
4. cxd5 {[%clk 0:03:06.1]} 4... Nxd5 {[%clk 0:03:00.8]} 5. Nc3 {[%clk 0:03:08]}
5... Nb6 {[%clk 0:03:01.6]} 6. Nf3 {[%clk 0:03:07]} 6... Nc6 {[%clk 0:03:02.4]}
7. O-O {[%clk 0:03:08.3]} 7... Be7 {[%clk 0:03:02.8]} 8. d3 {[%clk 0:03:09.6]}
8... O-O {[%clk 0:03:03.2]} 9. Be3 {[%clk 0:03:10.9]} 9... Be6 {[%clk
0:03:03.6]} 10. a3 {[%clk 0:03:10.3]} 10... f6 {[%clk 0:03:04.5]} 11. Rc1 {[%clk
0:03:08.1]} 11... Nd5 {[%clk 0:03:03.6]} 12. Nxd5 {[%clk 0:03:08.7]} 12... Bxd5
{[%clk 0:03:04.3]} 13. Bc5 {[%clk 0:03:10.2]} 13... Bd6 {[%clk 0:03:03]} 14. b4
{[%clk 0:03:06.9]} 14... a6 {[%clk 0:03:03]} 15. Qd2 {[%clk 0:02:55]} 15... Kh8
{[%clk 0:02:58.4]} 16. Rfd1 {[%clk 0:02:53.6]} 16... Qe7 {[%clk 0:02:52.4]} 17.
e4 {[%clk 0:02:53]} 17... Bb3 {[%clk 0:02:51.5]} 18. Re1 {[%clk 0:02:42.9]}
18... Rad8 {[%clk 0:02:50.9]} 19. Qc3 {[%clk 0:02:32.3]} 19... Be6 {[%clk
0:02:42.8]} 20. Be3 {[%clk 0:02:18.9]} 20... a5 {[%clk 0:02:21.9]} 21. b5 {[%clk
0:02:18]} 21... Nd4 {[%clk 0:02:13.8]} 22. Nxd4 {[%clk 0:02:13.2]} 22... exd4
{[%clk 0:02:14.3]} 23. Bxd4 {[%clk 0:02:13.3]} 23... Bxa3 {[%clk 0:02:13.3]} 24.
Bc5 {[%clk 0:02:14.1]} 24... Bxc5 {[%clk 0:02:06.8]} 25. Qxc5 {[%clk 0:02:16]}
25... Qxc5 {[%clk 0:01:54.2]} 26. Rxc5 {[%clk 0:02:17.9]} 26... Rf7 {[%clk
0:01:54.9]} 27. Rc3 {[%clk 0:02:11.2]} 27... a4 {[%clk 0:01:50.2]} 28. Ra1
{[%clk 0:02:06.5]} 28... Bb3 {[%clk 0:01:49.5]} 29. d4 {[%clk 0:02:01.6]} 29...
Re7 {[%clk 0:01:19.7]} 30. d5 {[%clk 0:01:59]} 30... Kg8 {[%clk 0:01:20.3]} 31.
Rac1 {[%clk 0:01:54.7]} 31... Ra8 {[%clk 0:00:56.8]} 32. Bh3 {[%clk 0:01:44.5]}
32... Rxe4 {[%clk 0:00:49.9]} 33. Rxc7 {[%clk 0:01:44.3]} 33... Bxd5 {[%clk
0:00:47.1]} 34. Bg2 {[%clk 0:01:44.7]} 34... Re5 {[%clk 0:00:36.4]} 35. f4
{[%clk 0:01:45.4]} 35... Rh5 {[%clk 0:00:22.4]} 36. g4 {[%clk 0:01:45.3]} 36...
Bxg2 {[%clk 0:00:18]} 37. gxh5 {[%clk 0:01:46.4]} 37... Bh3 {[%clk 0:00:17.3]}
38. Rxb7 {[%clk 0:01:44.2]} 38... a3 {[%clk 0:00:17.1]} 39. Ra1 {[%clk 0:01:43]}
39... Bc8 {[%clk 0:00:09.6]} 40. Rc7 {[%clk 0:01:39.9]} 40... Be6 {[%clk
0:00:09.7]} 41. b6 {[%clk 0:01:35.6]} 41... a2 {[%clk 0:00:10]} 42. f5 {[%clk
0:01:26.8]} 42... Bd5 {[%clk 0:00:08.7]} 43. b7 {[%clk 0:01:27.3]} 43... Rf8
{[%clk 0:00:07.6]} 44. Rxa2 {[%clk 0:01:23.7]} 44... Bxa2 {[%clk 0:00:07.4]} 45.
Rc8 {[%clk 0:01:24.1]} 45... Bd5 {[%clk 0:00:05.4]} 46. Rxf8+ {[%clk 0:01:24.7]}
46... Kxf8 {[%clk 0:00:06.8]} 47. b8=Q+ {[%clk 0:01:26.6]} 47... Kf7 {[%clk
0:00:07.8]} 48. Qc7+ {[%clk 0:01:27.6]} 1-0

[Event "*** Titled Tuesday Blitz"]
[Site "Chess.com"]
[Date "2020.02.04"]
[Round "4"]
[White "temus_galaktionov"]
[Black "enriquetejedor"]
[Result "1/2-1/2"]
[WhiteElo "2694"]
[BlackElo "2486"]
[TimeControl "180+2"]
[EndTime "13:51:08 PST"]
[Termination "Game drawn by stalemate"]

1. d4 {[%clk 0:03:00]} 1... d5 {[%clk 0:03:00]} 2. Nf3 {[%clk 0:03:00.8]} 2...
Nf6 {[%clk 0:03:00]} 3. c4 {[%clk 0:03:01.8]} 3... dxc4 {[%clk 0:03:00.7]} 4. e3
{[%clk 0:03:02.6]} 4... a6 {[%clk 0:02:59.6]} 5. a4 {[%clk 0:03:03]} 5... c5
{[%clk 0:02:58.7]} 6. Bxc4 {[%clk 0:03:03.7]} 6... e6 {[%clk 0:02:59.1]} 7. Nc3
{[%clk 0:03:03.7]} 7... Nc6 {[%clk 0:02:59.5]} 8. d5 {[%clk 0:03:00.9]} 8...
exd5 {[%clk 0:02:58.1]} 9. Nxd5 {[%clk 0:03:02]} 9... Nxd5 {[%clk 0:02:59.5]}
10. Bxd5 {[%clk 0:03:02.1]} 10... Be6 {[%clk 0:02:54.2]} 11. Bxe6 {[%clk
0:02:57]} 11... Qxd1+ {[%clk 0:02:52.8]} 12. Kxd1 {[%clk 0:02:58.8]} 12... fxe6
{[%clk 0:02:53.7]} 13. Bd2 {[%clk 0:02:59.1]} 13... Be7 {[%clk 0:02:52.6]} 14.
Bc3 {[%clk 0:03:00.1]} 14... Bf6 {[%clk 0:02:52]} 15. Rc1 {[%clk 0:02:58.4]}
15... O-O-O+ {[%clk 0:02:52.3]} 16. Ke2 {[%clk 0:02:59.2]} 16... Bxc3 {[%clk
0:02:48.1]} 17. bxc3 {[%clk 0:02:50.5]} 17... b6 {[%clk 0:02:50]} 18. Rhd1
{[%clk 0:02:50.7]} 18... h6 {[%clk 0:02:48.2]} 19. g4 {[%clk 0:02:47.7]} 19...
Kc7 {[%clk 0:02:43]} 20. h4 {[%clk 0:02:47]} 20... Rhf8 {[%clk 0:02:39.9]} 21.
h5 {[%clk 0:02:45]} 21... Rf7 {[%clk 0:02:37.4]} 22. Rxd8 {[%clk 0:02:45]} 22...
Kxd8 {[%clk 0:02:39.3]} 23. Rd1+ {[%clk 0:02:45.6]} 23... Rd7 {[%clk 0:02:37.9]}
24. Rxd7+ {[%clk 0:02:42.1]} 24... Kxd7 {[%clk 0:02:39.8]} 25. c4 {[%clk
0:02:41.8]} 25... Kd6 {[%clk 0:02:37.2]} 26. Kd3 {[%clk 0:02:42.5]} 26... Ke7
{[%clk 0:02:29.3]} 27. Ke4 {[%clk 0:02:41.6]} 27... Kf6 {[%clk 0:02:28.1]} 28.
Nd2 {[%clk 0:02:40.7]} 28... Ne5 {[%clk 0:02:27.8]} 29. f3 {[%clk 0:02:41.2]}
29... Nf7 {[%clk 0:02:27.6]} 30. f4 {[%clk 0:02:41.6]} 30... Nd6+ {[%clk
0:02:27.1]} 31. Kd3 {[%clk 0:02:42.7]} 31... Ke7 {[%clk 0:02:17.3]} 32. Ne4
{[%clk 0:02:43.4]} 32... Ne8 {[%clk 0:02:14.6]} 33. a5 {[%clk 0:02:41.5]} 33...
bxa5 {[%clk 0:02:14]} 34. Nxc5 {[%clk 0:02:42.2]} 34... Nc7 {[%clk 0:02:15.9]}
35. e4 {[%clk 0:02:39.6]} 35... e5 {[%clk 0:02:07.1]} 36. fxe5 {[%clk
0:02:37.3]} 36... Ne6 {[%clk 0:02:06.1]} 37. Nxa6 {[%clk 0:02:36.9]} 37... a4
{[%clk 0:02:04.1]} 38. Kc3 {[%clk 0:02:37.2]} 38... Kd7 {[%clk 0:01:58.7]} 39.
Kb4 {[%clk 0:02:36.4]} 39... Kc6 {[%clk 0:01:58.9]} 40. Kxa4 {[%clk 0:02:32.6]}
40... Ng5 {[%clk 0:01:59.9]} 41. Kb3 {[%clk 0:01:34.4]} 41... Nxe4 {[%clk
0:01:59.7]} 42. Kc2 {[%clk 0:01:25.4]} 42... Nf2 {[%clk 0:01:59.4]} 43. Nb4+
{[%clk 0:01:18.6]} 43... Kd7 {[%clk 0:01:48.1]} 44. Kc3 {[%clk 0:01:12.1]} 44...
Nxg4 {[%clk 0:01:45.6]} 45. Kd4 {[%clk 0:01:13.1]} 45... Ke6 {[%clk 0:01:39.2]}
46. Nd3 {[%clk 0:01:14.2]} 46... Nh2 {[%clk 0:01:30]} 47. Ke4 {[%clk 0:01:14.3]}
47... Nf1 {[%clk 0:01:28]} 48. Nf4+ {[%clk 0:01:12.1]} 48... Ke7 {[%clk
0:01:28]} 49. c5 {[%clk 0:01:11.7]} 49... Ng3+ {[%clk 0:01:26.8]} 50. Kd5 {[%clk
0:01:12.9]} 50... Nf5 {[%clk 0:01:26.4]} 51. c6 {[%clk 0:01:10.9]} 51... Ne3+
{[%clk 0:01:25.3]} 52. Kc5 {[%clk 0:01:11.9]} 52... Ng4 {[%clk 0:01:24.9]} 53.
e6 {[%clk 0:01:12.3]} 53... Nf2 {[%clk 0:00:50.3]} 54. c7 {[%clk 0:00:59]} 54...
Ne4+ {[%clk 0:00:50.7]} 55. Kd5 {[%clk 0:00:59.8]} 55... Nd6 {[%clk 0:00:51.7]}
56. Ng6+ {[%clk 0:01:00.8]} 56... Ke8 {[%clk 0:00:53.2]} 57. Kxd6 {[%clk
0:01:01.9]} 1/2-1/2

[Event "*** Titled Tuesday Blitz"]
[Site "Chess.com"]
[Date "2020.02.04"]
[Round "4"]
[White "reigningmvp"]
[Black "novocane"]
[Result "1-0"]
[WhiteElo "2362"]
[BlackElo "2144"]
[TimeControl "180+2"]
[EndTime "13:51:08 PST"]
[Termination "reigningmvp won by resignation"]

1. e4 {[%clk 0:03:01.9]} 1... c5 {[%clk 0:03:00.8]} 2. Nf3 {[%clk 0:03:02.8]}
2... Nc6 {[%clk 0:03:02]} 3. Bb5 {[%clk 0:03:03.5]} 3... Nf6 {[%clk 0:03:03.5]}
4. Nc3 {[%clk 0:03:03.6]} 4... g6 {[%clk 0:03:04.8]} 5. Bxc6 {[%clk 0:02:56.9]}
5... dxc6 {[%clk 0:03:05.7]} 6. O-O {[%clk 0:02:56.2]} 6... Bg7 {[%clk
0:03:06.2]} 7. d3 {[%clk 0:02:55]} 7... O-O {[%clk 0:03:06]} 8. h3 {[%clk
0:02:51.9]} 8... b6 {[%clk 0:03:05.9]} 9. Nh2 {[%clk 0:02:43]} 9... Ne8 {[%clk
0:02:52.7]} 10. f4 {[%clk 0:02:42.3]} 10... c4 {[%clk 0:02:32.6]} 11. f5 {[%clk
0:02:23.1]} 11... cxd3 {[%clk 0:02:26.3]} 12. cxd3 {[%clk 0:02:21.7]} 12... Ba6
{[%clk 0:02:21.7]} 13. Rf3 {[%clk 0:02:19.6]} 13... Nf6 {[%clk 0:02:06.2]} 14.
g4 {[%clk 0:02:10.7]} 14... Nd7 {[%clk 0:02:05.9]} 15. d4 {[%clk 0:02:08.8]}
15... c5 {[%clk 0:02:04.8]} 16. Be3 {[%clk 0:02:07.9]} 16... cxd4 {[%clk
0:02:03.5]} 17. Bxd4 {[%clk 0:02:08.3]} 17... Ne5 {[%clk 0:01:42.9]} 18. Bxe5
{[%clk 0:02:04.7]} 18... Bxe5 {[%clk 0:01:22.4]} 19. Nd5 {[%clk 0:02:00.1]}
19... e6 {[%clk 0:01:11.7]} 20. Nc3 {[%clk 0:01:53.1]} 20... Qc7 {[%clk
0:00:47.4]} 21. Nf1 {[%clk 0:01:50.5]} 21... Rad8 {[%clk 0:00:44.2]} 22. Qe1
{[%clk 0:01:46.7]} 22... exf5 {[%clk 0:00:35.2]} 23. gxf5 {[%clk 0:01:46.3]}
23... Bb7 {[%clk 0:00:20.6]} 24. f6 {[%clk 0:01:46.3]} 24... Qd6 {[%clk
0:00:11.9]} 25. Qh4 {[%clk 0:01:45.1]} 25... Rfe8 {[%clk 0:00:10]} 26. Rd1
{[%clk 0:01:38.2]} 26... Qf8 {[%clk 0:00:10.8]} 27. Nd5 {[%clk 0:01:28.6]} 27...
Bxd5 {[%clk 0:00:11.4]} 28. exd5 {[%clk 0:01:28.6]} 28... Rd6 {[%clk 0:00:11.5]}
29. Ne3 {[%clk 0:01:21.6]} 29... Bxf6 {[%clk 0:00:09.8]} 30. Rxf6 {[%clk
0:01:22.1]} 30... Rxf6 {[%clk 0:00:11]} 31. Qxf6 {[%clk 0:01:23.4]} 31... Rxe3
{[%clk 0:00:12.2]} 32. d6 {[%clk 0:01:25]} 32... Re8 {[%clk 0:00:12.3]} 33. d7
{[%clk 0:01:25.4]} 33... Rd8 {[%clk 0:00:13.8]} 34. Rd6 {[%clk 0:01:24.6]} 34...
h5 {[%clk 0:00:13.8]} 35. h4 {[%clk 0:01:22.8]} 35... Kh7 {[%clk 0:00:14.9]} 36.
Kg2 {[%clk 0:01:20]} 36... b5 {[%clk 0:00:12.9]} 37. b4 {[%clk 0:01:18.8]} 37...
a6 {[%clk 0:00:13.2]} 38. a3 {[%clk 0:01:20.1]} 38... Kg8 {[%clk 0:00:13.8]} 39.
Kh3 {[%clk 0:01:20.5]} 39... Kh7 {[%clk 0:00:13.8]} 40. Kg3 {[%clk 0:01:08.2]}
40... Kg8 {[%clk 0:00:14.6]} 41. Kf3 {[%clk 0:01:08.7]} 41... Kh7 {[%clk
0:00:15.5]} 42. Ke4 {[%clk 0:01:05.9]} 42... Kg8 {[%clk 0:00:16.3]} 43. Kd5
{[%clk 0:01:06.3]} 43... Kh7 {[%clk 0:00:12.6]} 44. Kc6 {[%clk 0:01:07.3]} 44...
Kg8 {[%clk 0:00:11.6]} 45. Kc7 {[%clk 0:01:08.2]} 45... Ra8 {[%clk 0:00:04.6]}
46. d8=Q {[%clk 0:01:07.7]} 46... Ra7+ {[%clk 0:00:04.9]} 47. Kc6 {[%clk
0:01:08.6]} 1-0

[Event "*** Titled Tuesday Blitz"]
[Site "Chess.com"]
[Date "2020.02.04"]
[Round "4"]
[White "albi1999"]
[Black "Manukyan_Artak"]
[Result "0-1"]
[WhiteElo "2488"]
[BlackElo "2348"]
[TimeControl "180+2"]
[EndTime "13:51:11 PST"]
[Termination "Manukyan_Artak won by resignation"]

1. d4 {[%clk 0:02:52.2]} 1... Nf6 {[%clk 0:02:58.4]} 2. c4 {[%clk 0:02:49.2]}
2... e6 {[%clk 0:02:59.1]} 3. Nf3 {[%clk 0:02:48]} 3... b6 {[%clk 0:02:58.8]} 4.
g3 {[%clk 0:02:47.1]} 4... Bb7 {[%clk 0:03:00]} 5. Bg2 {[%clk 0:02:46]} 5... c5
{[%clk 0:03:01.5]} 6. d5 {[%clk 0:02:45.6]} 6... exd5 {[%clk 0:03:01.9]} 7. cxd5
{[%clk 0:02:47.5]} 7... d6 {[%clk 0:03:02.6]} 8. Nc3 {[%clk 0:02:48.4]} 8... g6
{[%clk 0:03:03.3]} 9. O-O {[%clk 0:02:49.8]} 9... Bg7 {[%clk 0:03:04.4]} 10. e4
{[%clk 0:02:51.4]} 10... O-O {[%clk 0:03:05.4]} 11. a4 {[%clk 0:02:51.7]} 11...
Re8 {[%clk 0:03:02.8]} 12. Re1 {[%clk 0:02:52.6]} 12... Na6 {[%clk 0:03:01.8]}
13. Nd2 {[%clk 0:02:50.7]} 13... h5 {[%clk 0:02:57.2]} 14. Nc4 {[%clk
0:02:51.2]} 14... Ng4 {[%clk 0:02:55.6]} 15. Bf4 {[%clk 0:02:50.6]} 15... Ne5
{[%clk 0:02:55.8]} 16. Nxe5 {[%clk 0:02:50.4]} 16... Bxe5 {[%clk 0:02:48]} 17.
Bxe5 {[%clk 0:02:51.5]} 17... dxe5 {[%clk 0:02:49.9]} 18. Qd2 {[%clk 0:02:47.4]}
18... Nb4 {[%clk 0:02:48.3]} 19. f4 {[%clk 0:02:43]} 19... Ba6 {[%clk
0:02:37.7]} 20. f5 {[%clk 0:02:39.7]} 20... Qf6 {[%clk 0:02:32.2]} 21. Bh3
{[%clk 0:02:31.8]} 21... g5 {[%clk 0:02:28.1]} 22. Bf1 {[%clk 0:02:30.6]} 22...
Bxf1 {[%clk 0:02:26.4]} 23. Rxf1 {[%clk 0:02:32.5]} 23... Kg7 {[%clk 0:02:25.2]}
24. a5 {[%clk 0:02:30.3]} 24... g4 {[%clk 0:02:13.7]} 25. Rfd1 {[%clk
0:02:14.7]} 25... Qh6 {[%clk 0:02:03.6]} 26. Qxh6+ {[%clk 0:02:12]} 26... Kxh6
{[%clk 0:02:05.5]} 27. Rd2 {[%clk 0:02:12.3]} 27... Red8 {[%clk 0:01:58.4]} 28.
b3 {[%clk 0:02:13.1]} 28... Kg5 {[%clk 0:01:56.7]} 29. Kf2 {[%clk 0:02:14.1]}
29... Kf6 {[%clk 0:01:57.3]} 30. Ke3 {[%clk 0:02:15]} 30... Ke7 {[%clk
0:01:49.4]} 31. Na2 {[%clk 0:02:15.5]} 31... Nxa2 {[%clk 0:01:39.7]} 32. Rdxa2
{[%clk 0:02:17.4]} 32... b5 {[%clk 0:01:40.9]} 33. Rc2 {[%clk 0:02:15]} 33...
Kd6 {[%clk 0:01:38.9]} 34. h3 {[%clk 0:02:07.3]} 34... Rg8 {[%clk 0:01:35]} 35.
Rh1 {[%clk 0:02:04.8]} 35... f6 {[%clk 0:01:24.7]} 36. hxg4 {[%clk 0:02:03.7]}
36... Rxg4 {[%clk 0:01:24.8]} 37. Rg2 {[%clk 0:02:01.4]} 37... Rag8 {[%clk
0:01:25.5]} 38. Kf3 {[%clk 0:02:02.5]} 38... R4g5 {[%clk 0:01:26.1]} 39. Rc1
{[%clk 0:01:56.3]} 39... a6 {[%clk 0:01:09.4]} 40. Rc3 {[%clk 0:01:54.7]} 40...
Rh8 {[%clk 0:00:47.9]} 41. Rh2 {[%clk 0:01:53.4]} 41... Rg4 {[%clk 0:00:41.4]}
42. Rh3 {[%clk 0:01:51.1]} 42... Rhg8 {[%clk 0:00:39.9]} 43. Rc2 {[%clk
0:01:51.8]} 43... R4g5 {[%clk 0:00:33]} 44. Rc3 {[%clk 0:01:47.3]} 44... Rh8
{[%clk 0:00:32.4]} 45. Rc1 {[%clk 0:01:46.4]} 45... Rhg8 {[%clk 0:00:33.5]} 46.
Kf2 {[%clk 0:01:41.9]} 46... Rh8 {[%clk 0:00:31.8]} 47. Rc3 {[%clk 0:01:42.7]}
47... Rg4 {[%clk 0:00:32]} 48. Kf3 {[%clk 0:01:34.9]} 48... Rg5 {[%clk
0:00:32.2]} 49. Rh1 {[%clk 0:01:34]} 49... Rhg8 {[%clk 0:00:32.3]} 50. Kf2
{[%clk 0:01:35.3]} 50... Rh8 {[%clk 0:00:31.2]} 51. Rhc1 {[%clk 0:01:36]} 51...
Rc8 {[%clk 0:00:30.6]} 52. Kf3 {[%clk 0:01:36.5]} 52... Rg7 {[%clk 0:00:28.9]}
53. Rh1 {[%clk 0:01:34.3]} 53... Rg5 {[%clk 0:00:29.8]} 54. g4 {[%clk
0:01:27.8]} 54... Rxg4 {[%clk 0:00:25.5]} 55. Rxh5 {[%clk 0:01:28.8]} 55... Rf4+
{[%clk 0:00:26.7]} 56. Ke3 {[%clk 0:01:26.8]} 56... Rg8 {[%clk 0:00:27.2]} 57.
Rh3 {[%clk 0:01:24.3]} 57... Rgg4 {[%clk 0:00:27.6]} 58. Kd2 {[%clk 0:01:23.2]}
58... Rxe4 {[%clk 0:00:27.9]} 59. Rh6 {[%clk 0:01:23.9]} 59... Rg2+ {[%clk
0:00:26.3]} 0-1